[Event "Titled Tuesday Blitz July 4 Early 2023"]
[White "Omariev, Maksim"]
[Black "Kostiukov, Alexandr"]
[WhiteFideId "4193423"]
[BlackFideId "14108100"]
[WhiteElo "2426"]
[BlackElo "2290"]
[Result "1-0"]
[Round "7"]
[TimeControl "180+2"]
[Date "2023.07.04"]
[WhiteClock "0:00:27"]
[BlackClock "0:00:00"]
[Board "163"]

1. g4 {[%clk 0:02:52]}  h5 {[%clk 0:02:57]} 2. g5 {[%clk 0:02:52]}  g6 {[%clk 0:02:58]} 3. b4 {[%clk 0:02:46]}  Bg7 {[%clk 0:02:58]} 4. Nc3 {[%clk 0:02:47]}  d5 {[%clk 0:02:57]} 5. h4 {[%clk 0:02:35]}  d4 {[%clk 0:02:44]} 6. Ne4 {[%clk 0:02:35]}  e5 {[%clk 0:02:21]} 7. Bg2 {[%clk 0:02:29]}  Nc6 {[%clk 0:02:19]} 8. b5 {[%clk 0:02:27]}  Nce7 {[%clk 0:02:19]} 9. a4 {[%clk 0:02:24]}  Nd5 {[%clk 0:02:10]} 10. e3 {[%clk 0:02:20]}  Nge7 {[%clk 0:02:09]} 11. Ne2 {[%clk 0:02:17]}  O-O {[%clk 0:02:00]} 12. Ba3 {[%clk 0:02:12]}  Bf5 {[%clk 0:01:49]} 13. N2g3 {[%clk 0:02:11]}  Bg4 {[%clk 0:01:45]} 14. Qb1 {[%clk 0:01:57]}  Re8 {[%clk 0:01:38]} 15. Qb3 {[%clk 0:01:44]}  b6 {[%clk 0:01:13]} 16. c4 {[%clk 0:01:37]}  dxc3 {[%clk 0:01:09]} 17. Nxc3 {[%clk 0:01:38]}  Be6 {[%clk 0:01:05]} 18. Nxd5 {[%clk 0:01:03]}  Nxd5 {[%clk 0:00:53]} 19. Qc2 {[%clk 0:00:57]}  Rc8 {[%clk 0:00:48]} 20. Rc1 {[%clk 0:00:52]}  Kh7 {[%clk 0:00:39]} 21. Nxh5 {[%clk 0:00:43]}  Bf5 {[%clk 0:00:22]} 22. Be4 {[%clk 0:00:43]}  Bxe4 {[%clk 0:00:18]} 23. Qxe4 {[%clk 0:00:44]}  Qd7 {[%clk 0:00:06]} 24. Nxg7 {[%clk 0:00:33]}  Kxg7 {[%clk 0:00:06]} 25. h5 {[%clk 0:00:34]}  Re6 {[%clk 0:00:00]} 26. hxg6 {[%clk 0:00:27]} 1-0


[Site "https://www.chess.com"]

[Event "Titled Tuesday Blitz July 4 Early 2023"]
[White "Biriukov, Ilja"]
[Black "Herman, Daniel"]
[WhiteFideId "4113373"]
[BlackFideId "30935008"]
[WhiteElo "2286"]
[BlackElo "2425"]
[Result "0-1"]
[Round "7"]
[TimeControl "180+2"]
[Date "2023.07.04"]
[WhiteClock "0:00:06"]
[BlackClock "0:00:06"]
[Board "164"]

1. c4 {[%clk 0:03:00]}  e5 {[%clk 0:02:59]} 2. Nc3 {[%clk 0:03:00]}  Bb4 {[%clk 0:02:59]} 3. Nd5 {[%clk 0:02:57]}  Be7 {[%clk 0:02:59]} 4. d3 {[%clk 0:02:56]}  Nf6 {[%clk 0:02:56]} 5. Nxe7 {[%clk 0:02:52]}  Qxe7 {[%clk 0:02:56]} 6. e4 {[%clk 0:02:48]}  O-O {[%clk 0:02:51]} 7. g3 {[%clk 0:02:46]}  c6 {[%clk 0:02:48]} 8. Bg2 {[%clk 0:02:46]}  d5 {[%clk 0:02:48]} 9. Ne2 {[%clk 0:02:42]}  dxe4 {[%clk 0:02:46]} 10. dxe4 {[%clk 0:02:42]}  Rd8 {[%clk 0:02:41]} 11. Qc2 {[%clk 0:02:42]}  Na6 {[%clk 0:02:40]} 12. a3 {[%clk 0:02:41]}  Nc5 {[%clk 0:02:35]} 13. O-O {[%clk 0:02:40]}  a5 {[%clk 0:02:35]} 14. b3 {[%clk 0:02:35]}  a4 {[%clk 0:02:26]} 15. b4 {[%clk 0:02:35]}  Nb3 {[%clk 0:02:26]} 16. Rb1 {[%clk 0:02:29]}  Nxc1 {[%clk 0:02:12]} 17. Rbxc1 {[%clk 0:02:25]}  Bg4 {[%clk 0:02:10]} 18. f3 {[%clk 0:02:16]}  Bh5 {[%clk 0:02:09]} 19. Rfd1 {[%clk 0:02:13]}  h6 {[%clk 0:02:05]} 20. Rxd8+ {[%clk 0:02:12]}  Rxd8 {[%clk 0:01:58]} 21. Rd1 {[%clk 0:02:13]}  b5 {[%clk 0:01:52]} 22. c5 {[%clk 0:02:09]}  Bg6 {[%clk 0:01:40]} 23. Rd2 {[%clk 0:02:02]}  Kh7 {[%clk 0:01:30]} 24. Qd1 {[%clk 0:02:01]}  Rd7 {[%clk 0:01:24]} 25. Nc3 {[%clk 0:01:58]}  Bh5 {[%clk 0:01:16]} 26. Kf2 {[%clk 0:01:53]}  Rxd2+ {[%clk 0:00:46]} 27. Qxd2 {[%clk 0:01:52]}  Qe6 {[%clk 0:00:47]} 28. Bf1 {[%clk 0:00:57]}  Qb3 {[%clk 0:00:43]} 29. Qc1 {[%clk 0:00:55]}  Ne8 {[%clk 0:00:22]} 30. g4 {[%clk 0:00:46]}  Bg6 {[%clk 0:00:22]} 31. Bxb5 {[%clk 0:00:38]}  cxb5 {[%clk 0:00:23]} 32. Nxb5 {[%clk 0:00:38]}  Qd3 {[%clk 0:00:12]} 33. Qf1 {[%clk 0:00:30]}  Qc2+ {[%clk 0:00:10]} 34. Qe2 {[%clk 0:00:29]}  Qc1 {[%clk 0:00:10]} 35. Na7 {[%clk 0:00:25]}  Qh1 {[%clk 0:00:10]} 36. Ke3 {[%clk 0:00:24]}  Nc7 {[%clk 0:00:08]} 37. b5 {[%clk 0:00:23]}  Qc1+ {[%clk 0:00:06]} 38. Kd3 {[%clk 0:00:19]}  Qxc5 {[%clk 0:00:06]} 39. Qe3 {[%clk 0:00:19]}  Qxa3+ {[%clk 0:00:05]} 40. Ke2 {[%clk 0:00:18]}  Qb2+ {[%clk 0:00:05]} 41. Kd1 {[%clk 0:00:17]}  Nxb5 {[%clk 0:00:05]} 42. Nxb5 {[%clk 0:00:16]}  Qxb5 {[%clk 0:00:06]} 43. h4 {[%clk 0:00:15]}  Qb3+ {[%clk 0:00:06]} 44. Qxb3 {[%clk 0:00:13]}  axb3 {[%clk 0:00:07]} 45. Kc1 {[%clk 0:00:13]}  f6 {[%clk 0:00:05]} 46. Kb2 {[%clk 0:00:06]}  Bf7 {[%clk 0:00:06]} 0-1


[Site "https://www.chess.com"]

[Event "Titled Tuesday Blitz July 4 Early 2023"]
[White "tomobeast"]
[Black "Bazilius, Augustinas"]
[BlackFideId "12832251"]
[WhiteElo "2249"]
[BlackElo "2406"]
[Result "1-0"]
[Round "7"]
[TimeControl "180+2"]
[Date "2023.07.04"]
[WhiteClock "0:00:40"]
[BlackClock "0:00:04"]
[Board "169"]

1. e4 {[%clk 0:03:00]}  e6 {[%clk 0:02:58]} 2. d4 {[%clk 0:03:00]}  d5 {[%clk 0:02:59]} 3. Nc3 {[%clk 0:03:00]}  Nf6 {[%clk 0:02:59]} 4. Bg5 {[%clk 0:02:59]}  Bb4 {[%clk 0:02:59]} 5. e5 {[%clk 0:02:57]}  h6 {[%clk 0:02:59]} 6. Bd2 {[%clk 0:02:56]}  Bxc3 {[%clk 0:02:55]} 7. bxc3 {[%clk 0:02:57]}  Ne4 {[%clk 0:02:55]} 8. Bc1 {[%clk 0:02:58]}  Nxc3 {[%clk 0:02:39]} 9. Qg4 {[%clk 0:02:55]}  g6 {[%clk 0:02:35]} 10. Bd3 {[%clk 0:02:46]}  Ne4 {[%clk 0:02:28]} 11. f3 {[%clk 0:02:37]}  Ng5 {[%clk 0:01:52]} 12. h4 {[%clk 0:02:36]}  Nh7 {[%clk 0:01:51]} 13. Bxh6 {[%clk 0:02:35]}  c5 {[%clk 0:01:45]} 14. Ne2 {[%clk 0:01:52]}  c4 {[%clk 0:01:37]} 15. Bxg6 {[%clk 0:01:52]}  fxg6 {[%clk 0:01:37]} 16. Qxg6+ {[%clk 0:01:53]}  Kd7 {[%clk 0:01:31]} 17. Bg7 {[%clk 0:01:50]}  Qg8 {[%clk 0:01:01]} 18. Nf4 {[%clk 0:01:25]}  Nc6 {[%clk 0:00:38]} 19. Bxh8 {[%clk 0:01:21]}  Qxh8 {[%clk 0:00:34]} 20. Qxe6+ {[%clk 0:01:20]}  Kc7 {[%clk 0:00:31]} 21. Nxd5+ {[%clk 0:00:40]}  Kd8 {[%clk 0:00:25]} 22. Qd6+ {[%clk 0:00:40]}  Bd7 {[%clk 0:00:22]} 23. e6 {[%clk 0:00:40]}  Qe8 {[%clk 0:00:04]} 24. Qc7# {[%clk 0:00:40]} 1-0


[Site "https://www.chess.com"]

[Event "Titled Tuesday Blitz July 4 Early 2023"]
[White "Xavier_mompel"]
[Black "Carrasco Miranda, Andres"]
[BlackFideId "3405990"]
[WhiteElo "2247"]
[BlackElo "2404"]
[Result "0-1"]
[Round "7"]
[TimeControl "180+2"]
[Date "2023.07.04"]
[WhiteClock "0:00:13"]
[BlackClock "0:02:02"]
[Board "170"]

1. e4 {[%clk 0:03:00]}  e5 {[%clk 0:02:56]} 2. Nf3 {[%clk 0:03:00]}  Nc6 {[%clk 0:02:55]} 3. Bb5 {[%clk 0:03:00]}  Nf6 {[%clk 0:02:55]} 4. O-O {[%clk 0:02:57]}  Nxe4 {[%clk 0:02:54]} 5. d4 {[%clk 0:02:55]}  Nd6 {[%clk 0:02:54]} 6. Bxc6 {[%clk 0:02:54]}  dxc6 {[%clk 0:02:55]} 7. dxe5 {[%clk 0:02:53]}  Nf5 {[%clk 0:02:55]} 8. Qxd8+ {[%clk 0:02:53]}  Kxd8 {[%clk 0:02:56]} 9. Bg5+ {[%clk 0:02:52]}  Ke8 {[%clk 0:02:53]} 10. Nc3 {[%clk 0:02:47]}  h6 {[%clk 0:02:51]} 11. Bf4 {[%clk 0:02:46]}  Be6 {[%clk 0:02:50]} 12. Rad1 {[%clk 0:02:43]}  Rd8 {[%clk 0:02:48]} 13. Rxd8+ {[%clk 0:02:41]}  Kxd8 {[%clk 0:02:48]} 14. Rd1+ {[%clk 0:02:41]}  Kc8 {[%clk 0:02:46]} 15. a3 {[%clk 0:02:32]}  b6 {[%clk 0:02:45]} 16. b3 {[%clk 0:02:22]}  a5 {[%clk 0:02:42]} 17. a4 {[%clk 0:02:20]}  Bb4 {[%clk 0:02:41]} 18. Ne4 {[%clk 0:02:17]}  g5 {[%clk 0:02:32]} 19. Bg3 {[%clk 0:02:14]}  Nxg3 {[%clk 0:02:23]} 20. hxg3 {[%clk 0:02:09]}  Bf5 {[%clk 0:02:21]} 21. Nf6 {[%clk 0:01:30]}  Bxc2 {[%clk 0:02:19]} 22. Rc1 {[%clk 0:01:12]}  Bxb3 {[%clk 0:02:19]} 23. Rxc6 {[%clk 0:01:05]}  Bxa4 {[%clk 0:02:18]} 24. Rc1 {[%clk 0:01:05]}  Rd8 {[%clk 0:02:14]} 25. Ng4 {[%clk 0:00:54]}  Rd1+ {[%clk 0:02:04]} 26. Rxd1 {[%clk 0:00:53]}  Bxd1 {[%clk 0:02:05]} 27. Nxh6 {[%clk 0:00:53]}  Bxf3 {[%clk 0:02:05]} 28. gxf3 {[%clk 0:00:49]}  a4 {[%clk 0:02:04]} 29. Nf5 {[%clk 0:00:13]}  Bc5 {[%clk 0:02:02]} 0-1


[Site "https://www.chess.com"]

[Event "Titled Tuesday Blitz July 4 Early 2023"]
[White "Putri, Regita Desyari"]
[Black "Ncatt"]
[WhiteFideId "7109083"]
[WhiteElo "2243"]
[BlackElo "2402"]
[Result "0-1"]
[Round "7"]
[TimeControl "180+2"]
[Date "2023.07.04"]
[WhiteClock "0:00:00"]
[BlackClock "0:01:52"]
[Board "178"]

1. d4 {[%clk 0:02:59]}  Nf6 {[%clk 0:02:59]} 2. c4 {[%clk 0:02:59]}  c5 {[%clk 0:02:59]} 3. Nf3 {[%clk 0:02:58]}  b5 {[%clk 0:03:00]} 4. cxb5 {[%clk 0:02:36]}  a5 {[%clk 0:03:00]} 5. Nc3 {[%clk 0:02:25]}  e6 {[%clk 0:03:00]} 6. e4 {[%clk 0:02:23]}  d5 {[%clk 0:02:56]} 7. exd5 {[%clk 0:02:21]}  Nxd5 {[%clk 0:02:55]} 8. dxc5 {[%clk 0:02:17]}  Bxc5 {[%clk 0:02:55]} 9. Nxd5 {[%clk 0:02:17]}  exd5 {[%clk 0:02:55]} 10. Bd3 {[%clk 0:02:12]}  O-O {[%clk 0:02:56]} 11. O-O {[%clk 0:02:13]}  Nd7 {[%clk 0:02:55]} 12. h3 {[%clk 0:02:06]}  Bb7 {[%clk 0:02:54]} 13. a3 {[%clk 0:01:39]}  Qf6 {[%clk 0:02:54]} 14. Rb1 {[%clk 0:01:31]}  Rac8 {[%clk 0:02:52]} 15. b4 {[%clk 0:01:29]}  axb4 {[%clk 0:02:52]} 16. axb4 {[%clk 0:01:29]}  Bb6 {[%clk 0:02:51]} 17. Bb2 {[%clk 0:01:20]}  Qd6 {[%clk 0:02:48]} 18. Bd4 {[%clk 0:01:17]}  Rfe8 {[%clk 0:02:44]} 19. Bf5 {[%clk 0:01:13]}  Re7 {[%clk 0:02:35]} 20. Qd3 {[%clk 0:00:52]}  g6 {[%clk 0:02:26]} 21. Bxd7 {[%clk 0:00:51]}  Rxd7 {[%clk 0:02:26]} 22. Ne5 {[%clk 0:00:36]}  Re7 {[%clk 0:02:21]} 23. Ng4 {[%clk 0:00:34]}  Re6 {[%clk 0:02:10]} 24. Nh6+ {[%clk 0:00:23]}  Kf8 {[%clk 0:02:09]} 25. Ba1 {[%clk 0:00:20]}  Rc4 {[%clk 0:02:07]} 26. Rbc1 {[%clk 0:00:11]}  Qf4 {[%clk 0:02:03]} 27. Rxc4 {[%clk 0:00:05]}  dxc4 {[%clk 0:02:02]} 28. Qc3 {[%clk 0:00:03]}  Qxh6 {[%clk 0:02:02]} 29. Qh8+ {[%clk 0:00:04]}  Ke7 {[%clk 0:02:03]} 30. Qb8 {[%clk 0:00:04]}  Bd5 {[%clk 0:01:54]} 31. Rd1 {[%clk 0:00:04]}  Qg5 {[%clk 0:01:52]} 32. Rxd5 {[%clk 0:00:00]}  Qxd5 {[%clk 0:01:52]} 0-1


[Site "https://www.chess.com"]

[Event "Titled Tuesday Blitz July 4 Early 2023"]
[White "Saito, Vinicius"]
[Black "Ivanova, Karina"]
[WhiteFideId "2113384"]
[BlackFideId "24139750"]
[WhiteElo "2385"]
[BlackElo "2206"]
[Result "1-0"]
[Round "7"]
[TimeControl "180+2"]
[Date "2023.07.04"]
[WhiteClock "0:00:23"]
[BlackClock "0:00:00"]
[Board "179"]

1. e4 {[%clk 0:03:00]}  c6 {[%clk 0:02:59]} 2. d4 {[%clk 0:03:00]}  d5 {[%clk 0:02:59]} 3. e5 {[%clk 0:03:00]}  c5 {[%clk 0:02:57]} 4. dxc5 {[%clk 0:03:00]}  e6 {[%clk 0:02:57]} 5. Qg4 {[%clk 0:02:57]}  Qc7 {[%clk 0:02:50]} 6. Nf3 {[%clk 0:02:57]}  Qxc5 {[%clk 0:02:47]} 7. Bd3 {[%clk 0:02:56]}  Ne7 {[%clk 0:02:40]} 8. O-O {[%clk 0:02:56]}  Ng6 {[%clk 0:02:38]} 9. a3 {[%clk 0:02:47]}  Qc7 {[%clk 0:02:35]} 10. Re1 {[%clk 0:02:46]}  Nc6 {[%clk 0:02:31]} 11. Qh5 {[%clk 0:02:41]}  Bd7 {[%clk 0:02:22]} 12. b4 {[%clk 0:02:41]}  O-O-O {[%clk 0:02:18]} 13. Bb2 {[%clk 0:02:39]}  Be8 {[%clk 0:02:10]} 14. Nbd2 {[%clk 0:02:22]}  Nf4 {[%clk 0:02:08]} 15. Qg4 {[%clk 0:02:22]}  Nxd3 {[%clk 0:02:03]} 16. cxd3 {[%clk 0:02:22]}  Kb8 {[%clk 0:01:59]} 17. Rac1 {[%clk 0:02:22]}  Qb6 {[%clk 0:01:50]} 18. Nb3 {[%clk 0:02:17]}  h5 {[%clk 0:01:46]} 19. Qf4 {[%clk 0:02:14]}  g6 {[%clk 0:01:34]} 20. Rc2 {[%clk 0:02:13]}  Ne7 {[%clk 0:01:11]} 21. Nc5 {[%clk 0:02:08]}  Nf5 {[%clk 0:01:09]} 22. Nd4 {[%clk 0:02:03]}  Bh6 {[%clk 0:01:07]} 23. Qf3 {[%clk 0:02:03]}  Bc6 {[%clk 0:01:02]} 24. Qe2 {[%clk 0:01:51]}  a5 {[%clk 0:00:51]} 25. Bc3 {[%clk 0:01:48]}  a4 {[%clk 0:00:48]} 26. Rb1 {[%clk 0:01:45]}  Bb5 {[%clk 0:00:45]} 27. Nxf5 {[%clk 0:01:26]}  gxf5 {[%clk 0:00:44]} 28. Bd4 {[%clk 0:01:27]}  Ka8 {[%clk 0:00:38]} 29. f3 {[%clk 0:00:44]}  Rc8 {[%clk 0:00:31]} 30. Qf2 {[%clk 0:00:44]}  Qd8 {[%clk 0:00:23]} 31. Kh1 {[%clk 0:00:42]}  Qe7 {[%clk 0:00:19]} 32. Be3 {[%clk 0:00:28]}  Bxe3 {[%clk 0:00:14]} 33. Qxe3 {[%clk 0:00:28]}  b6 {[%clk 0:00:14]} 34. d4 {[%clk 0:00:26]}  bxc5 {[%clk 0:00:13]} 35. bxc5 {[%clk 0:00:25]}  Bc4 {[%clk 0:00:12]} 36. Rcb2 {[%clk 0:00:26]}  Rb8 {[%clk 0:00:12]} 37. Rb4 {[%clk 0:00:22]}  Rxb4 {[%clk 0:00:11]} 38. Rxb4 {[%clk 0:00:23]}  Rb8 {[%clk 0:00:10]} 39. Rxa4+ {[%clk 0:00:21]}  Kb7 {[%clk 0:00:10]} 40. h4 {[%clk 0:00:21]}  Qxh4+ {[%clk 0:00:09]} 41. Kg1 {[%clk 0:00:21]}  Qe7 {[%clk 0:00:08]} 42. Qc3 {[%clk 0:00:18]}  Kc8 {[%clk 0:00:07]} 43. Rb4 {[%clk 0:00:18]}  Qa7 {[%clk 0:00:04]} 44. Qb2 {[%clk 0:00:16]}  Rxb4 {[%clk 0:00:03]} 45. Qxb4 {[%clk 0:00:17]}  Qb7 {[%clk 0:00:04]} 46. Kh2 {[%clk 0:00:16]}  Qxb4 {[%clk 0:00:03]} 47. axb4 {[%clk 0:00:17]}  f4 {[%clk 0:00:02]} 48. Kh3 {[%clk 0:00:17]}  Bd3 {[%clk 0:00:01]} 49. g3 {[%clk 0:00:17]}  fxg3 {[%clk 0:00:01]} 50. Kxg3 {[%clk 0:00:17]}  Kb7 {[%clk 0:00:02]} 51. Kh4 {[%clk 0:00:18]}  Kc6 {[%clk 0:00:02]} 52. Kxh5 {[%clk 0:00:18]}  Ba6 {[%clk 0:00:01]} 53. Kg5 {[%clk 0:00:18]}  Kb5 {[%clk 0:00:02]} 54. Kf6 {[%clk 0:00:19]}  Kxb4 {[%clk 0:00:02]} 55. Kxf7 {[%clk 0:00:19]}  Kc4 {[%clk 0:00:02]} 56. Kxe6 {[%clk 0:00:19]}  Kxd4 {[%clk 0:00:03]} 57. Kd6 {[%clk 0:00:20]}  Bb5 {[%clk 0:00:03]} 58. e6 {[%clk 0:00:21]}  Kc4 {[%clk 0:00:02]} 59. c6 {[%clk 0:00:21]}  Bxc6 {[%clk 0:00:01]} 60. Kxc6 {[%clk 0:00:22]}  d4 {[%clk 0:00:02]} 61. e7 {[%clk 0:00:22]}  d3 {[%clk 0:00:03]} 62. e8=Q {[%clk 0:00:23]}  d2 {[%clk 0:00:04]} 63. Qe2+ {[%clk 0:00:23]}  Kc3 {[%clk 0:00:00]} 64. Qd1 {[%clk 0:00:23]} 1-0


[Site "https://www.chess.com"]

[Event "Titled Tuesday Blitz July 4 Early 2023"]
[White "Mikhaylova, Irina"]
[Black "campochess"]
[WhiteFideId "4109040"]
[WhiteElo "2324"]
[BlackElo "2141"]
[Result "1-0"]
[Round "7"]
[TimeControl "180+2"]
[Date "2023.07.04"]
[WhiteClock "0:00:54"]
[BlackClock "0:00:07"]
[Board "181"]

1. Nf3 {[%clk 0:03:00]}  c5 {[%clk 0:02:59]} 2. c4 {[%clk 0:03:00]}  Nc6 {[%clk 0:02:59]} 3. Nc3 {[%clk 0:03:01]}  g6 {[%clk 0:02:59]} 4. d4 {[%clk 0:03:01]}  cxd4 {[%clk 0:02:58]} 5. Nxd4 {[%clk 0:03:01]}  Bg7 {[%clk 0:02:59]} 6. e3 {[%clk 0:03:02]}  Nf6 {[%clk 0:02:58]} 7. Be2 {[%clk 0:03:02]}  O-O {[%clk 0:02:58]} 8. O-O {[%clk 0:03:03]}  b6 {[%clk 0:02:58]} 9. b3 {[%clk 0:03:02]}  Bb7 {[%clk 0:02:58]} 10. Bb2 {[%clk 0:03:02]}  Nxd4 {[%clk 0:02:57]} 11. Qxd4 {[%clk 0:02:59]}  Ne4 {[%clk 0:02:47]} 12. Qd3 {[%clk 0:02:55]}  Nc5 {[%clk 0:02:39]} 13. Qd2 {[%clk 0:02:54]}  d6 {[%clk 0:02:37]} 14. b4 {[%clk 0:02:47]}  Ne6 {[%clk 0:02:36]} 15. Nd5 {[%clk 0:02:44]}  Bxb2 {[%clk 0:02:31]} 16. Qxb2 {[%clk 0:02:44]}  Bxd5 {[%clk 0:02:30]} 17. cxd5 {[%clk 0:02:44]}  Ng7 {[%clk 0:02:30]} 18. Rac1 {[%clk 0:02:39]}  Qd7 {[%clk 0:02:30]} 19. Rc6 {[%clk 0:02:37]}  Rfc8 {[%clk 0:02:26]} 20. Rfc1 {[%clk 0:02:37]}  e6 {[%clk 0:02:18]} 21. Qc3 {[%clk 0:02:16]}  Rxc6 {[%clk 0:02:16]} 22. dxc6 {[%clk 0:02:03]}  Qc7 {[%clk 0:02:16]} 23. b5 {[%clk 0:02:01]}  Rc8 {[%clk 0:02:11]} 24. e4 {[%clk 0:01:52]}  d5 {[%clk 0:02:08]} 25. exd5 {[%clk 0:01:36]}  exd5 {[%clk 0:02:08]} 26. Rd1 {[%clk 0:01:36]}  Ne6 {[%clk 0:01:43]} 27. Rxd5 {[%clk 0:01:27]}  Nf4 {[%clk 0:01:42]} 28. Rd2 {[%clk 0:01:27]}  Re8 {[%clk 0:01:37]} 29. Bf1 {[%clk 0:01:04]}  Re1 {[%clk 0:00:57]} 30. g3 {[%clk 0:01:02]}  Nh3+ {[%clk 0:00:18]} 31. Kg2 {[%clk 0:01:02]}  Ng5 {[%clk 0:00:17]} 32. Rd7 {[%clk 0:00:55]}  Qc8 {[%clk 0:00:13]} 33. Qd2 {[%clk 0:00:54]}  Re5 {[%clk 0:00:07]} 34. Rd8+ {[%clk 0:00:54]} 1-0


[Site "https://www.chess.com"]

[Event "Titled Tuesday Blitz July 4 Early 2023"]
[White "Wang, Alexander J"]
[Black "Gyulamiryan-koryun"]
[WhiteFideId "30955270"]
[WhiteElo "2301"]
[BlackElo "1686"]
[Result "1/2-1/2"]
[Round "7"]
[TimeControl "180+2"]
[Date "2023.07.04"]
[WhiteClock "0:00:10"]
[BlackClock "0:00:08"]
[Board "182"]

1. e4 {[%clk 0:02:58]}  e5 {[%clk 0:02:54]} 2. Nf3 {[%clk 0:02:57]}  Nc6 {[%clk 0:02:53]} 3. Bb5 {[%clk 0:02:56]}  a6 {[%clk 0:02:52]} 4. Ba4 {[%clk 0:02:54]}  Nf6 {[%clk 0:02:51]} 5. d4 {[%clk 0:02:51]}  exd4 {[%clk 0:02:26]} 6. O-O {[%clk 0:02:47]}  b5 {[%clk 0:02:20]} 7. Bb3 {[%clk 0:02:46]}  Bc5 {[%clk 0:02:13]} 8. e5 {[%clk 0:02:41]}  Ng8 {[%clk 0:01:32]} 9. c3 {[%clk 0:02:00]}  dxc3 {[%clk 0:01:21]} 10. Nxc3 {[%clk 0:02:01]}  Nge7 {[%clk 0:01:14]} 11. Ne4 {[%clk 0:01:54]}  d6 {[%clk 0:01:00]} 12. Neg5 {[%clk 0:01:45]}  d5 {[%clk 0:00:53]} 13. Qc2 {[%clk 0:01:40]}  Bb6 {[%clk 0:00:38]} 14. a4 {[%clk 0:01:24]}  Bf5 {[%clk 0:00:34]} 15. Qd1 {[%clk 0:01:23]}  h6 {[%clk 0:00:30]} 16. Nh3 {[%clk 0:01:13]}  Bxh3 {[%clk 0:00:29]} 17. gxh3 {[%clk 0:01:14]}  O-O {[%clk 0:00:28]} 18. axb5 {[%clk 0:01:12]}  axb5 {[%clk 0:00:28]} 19. Rxa8 {[%clk 0:01:13]}  Qxa8 {[%clk 0:00:28]} 20. Bxd5 {[%clk 0:01:07]}  Nxd5 {[%clk 0:00:28]} 21. Qxd5 {[%clk 0:01:08]}  Rd8 {[%clk 0:00:26]} 22. Qe4 {[%clk 0:01:07]}  Nd4 {[%clk 0:00:19]} 23. Qxa8 {[%clk 0:01:04]}  Rxa8 {[%clk 0:00:20]} 24. Nxd4 {[%clk 0:01:01]}  Bxd4 {[%clk 0:00:20]} 25. Re1 {[%clk 0:00:56]}  Ra2 {[%clk 0:00:19]} 26. Re2 {[%clk 0:00:54]}  c5 {[%clk 0:00:17]} 27. Kg2 {[%clk 0:00:52]}  Ra1 {[%clk 0:00:17]} 28. Be3 {[%clk 0:00:51]}  Bxe5 {[%clk 0:00:16]} 29. Bxc5 {[%clk 0:00:50]}  f6 {[%clk 0:00:16]} 30. b4 {[%clk 0:00:49]}  Rb1 {[%clk 0:00:15]} 31. Re4 {[%clk 0:00:46]}  Kf7 {[%clk 0:00:15]} 32. Re2 {[%clk 0:00:44]}  Bc3 {[%clk 0:00:14]} 33. Re4 {[%clk 0:00:42]}  Rb2 {[%clk 0:00:14]} 34. Bd6 {[%clk 0:00:38]}  f5 {[%clk 0:00:14]} 35. Re7+ {[%clk 0:00:31]}  Kg6 {[%clk 0:00:13]} 36. Rb7 {[%clk 0:00:29]}  Be1 {[%clk 0:00:12]} 37. Bc5 {[%clk 0:00:28]}  Bxb4 {[%clk 0:00:11]} 38. Rxb5 {[%clk 0:00:26]}  Bc3 {[%clk 0:00:11]} 39. Rxb2 {[%clk 0:00:25]}  Bxb2 {[%clk 0:00:12]} 40. Be3 {[%clk 0:00:25]}  Kf6 {[%clk 0:00:12]} 41. Kf3 {[%clk 0:00:25]}  g5 {[%clk 0:00:12]} 42. Bb6 {[%clk 0:00:25]}  Be5 {[%clk 0:00:12]} 43. Kg2 {[%clk 0:00:25]}  h5 {[%clk 0:00:11]} 44. f3 {[%clk 0:00:23]}  Kg6 {[%clk 0:00:11]} 45. Bd8 {[%clk 0:00:23]}  Bf4 {[%clk 0:00:10]} 46. Ba5 {[%clk 0:00:22]}  Kf7 {[%clk 0:00:10]} 47. Be1 {[%clk 0:00:22]}  Ke6 {[%clk 0:00:11]} 48. Bg3 {[%clk 0:00:21]}  Ke5 {[%clk 0:00:10]} 49. Be1 {[%clk 0:00:18]}  h4 {[%clk 0:00:10]} 50. Ba5 {[%clk 0:00:18]}  Kd4 {[%clk 0:00:10]} 51. Bd8 {[%clk 0:00:17]}  Kd3 {[%clk 0:00:10]} 52. Be7 {[%clk 0:00:17]}  Ke2 {[%clk 0:00:10]} 53. Bd8 {[%clk 0:00:17]}  Be3 {[%clk 0:00:09]} 54. Bf6 {[%clk 0:00:16]}  Bf4 {[%clk 0:00:09]} 55. Bd4 {[%clk 0:00:15]}  Kd3 {[%clk 0:00:09]} 56. Bf2 {[%clk 0:00:15]}  Ke2 {[%clk 0:00:09]} 57. Ba7 {[%clk 0:00:15]}  Bxh2 {[%clk 0:00:09]} 58. Kxh2 {[%clk 0:00:14]}  Kxf3 {[%clk 0:00:09]} 59. Bc5 {[%clk 0:00:13]}  g4 {[%clk 0:00:09]} 60. hxg4 {[%clk 0:00:13]}  fxg4 {[%clk 0:00:10]} 61. Bd6 {[%clk 0:00:12]}  Kf2 {[%clk 0:00:08]} 62. Be7 {[%clk 0:00:08]}  g3+ {[%clk 0:00:08]} 63. Kh3 {[%clk 0:00:08]}  g2 {[%clk 0:00:07]} 64. Bc5+ {[%clk 0:00:08]}  Kf1 {[%clk 0:00:07]} 65. Kxh4 {[%clk 0:00:09]}  g1=Q {[%clk 0:00:08]} 66. Bxg1 {[%clk 0:00:10]} 1/2-1/2


[Site "https://www.chess.com"]